{"text_format":"3","workbook":"xlsx","n_sheets":2,"sheets":["Početak","Faktura za uslugu"],"not_rendered":{"images":1,"defined_names":1},"read":"whole","date_system":"1900"}

{"sheet":"Početak","index":0,"n_rows":8,"n_cols":2,"rows_kept":8}
[null,"OSNOVNI PODACI O OVOM PREDLOŠKU"]
[null,"Koristite ovaj predložak da biste kreirali faktura za uslugu."]
[null,"Unesite broj fakture, datum, ime preduzeća, adresu, slogan i detalje primaoca fakture."]
[null,"Unesite informacije u tabele."]
[null,"Zbir se automatski izračunava."]
[null,"Napomena: "]
[null,"Dodatna uputstva navedena su u koloni A na radnom listu FAKTURA ZA SERVIS. Taj tekst je namerno skriven. Da biste uklonili tekst, izaberite kolonu A, a zatim izaberite stavku „IZBRIŠI“. Da biste otkrili tekst, izaberite kolonu A, a zatim promenite boju fonta."]
[null,"Da biste saznali više o tabelama, pritisnite taster SHIFT, a zatim unutar tabele pritisnite taster F10, izaberite opciju „TABELA“, a zatim stavku „ALTERNATIVNI TEKST“."]

{"sheet":"Faktura za uslugu","index":1,"n_rows":43,"n_cols":5,"rows_kept":43,"merged":[[0,1,0,2],[0,3,0,4],[1,1,1,4],[2,1,2,3],[3,1,3,3],[4,1,4,2],[5,1,5,2],[6,1,6,2],[7,1,7,2],[41,1,41,2],[41,3,41,4],[42,1,42,4]]}
["Kreirate faktura za uslugu na ovom radnom listu. Unesite logotip preduzeća u ćeliji sa desne strane i naslov radnog lista u ćeliju D1. Korisna uputstva o tome kako da koristite ovaj radni list nalaze se u ćelijama u ovoj koloni. Sledeće uputstvo se nalazi u ćeliji A3.","Čuvar mesta logotipa nalazi se u ovoj ćeliji.",null,"FAKTURA"]
[]
["Unesite ime preduzeća u ćeliju sa desne strane.","Ime vašeg preduzeća"]
["Unesite slogan preduzeća u ćeliju sa desne strane.","Slogan vašeg preduzeća"]
["Unesite ulicu i broj preduzeća u ćeliju sa desne strane, a broj fakture u ćeliju E5.","Ulica i broj",null,"FAKTURA BR.","Br."]
["Unesite grad, državu i poštanski broj u ćeliju sa desne strane, a datum u ćeliju E6.","Grad, država, poštanski broj",null,"DATUM ",{"$f":"TODAY()","v":"2019-04-17"}]
["Unesite brojeve telefona i faksa u ćeliju sa desne strane, a ID u ćeliju E7.","Telefon Faks",null,"ID KLIJENTA ","ID"]
["Adresu e-pošte unesite u ćeliju sa desne strane.","Adresa e-pošte"]
["Oznaka „Za“ nalazi se u ćeliji s desne strane. Unesite detalje primaoca fakture kao što su ime, ime preduzeća, adresa i telefonski broj u opsegu ćelija C9 do C13. Sledeće uputstvo se nalazi u ćeliji A14.","ZA","Ime"]
[null,null,"Ime preduzeća"]
[null,null,"Ulica i broj"]
[null,null,"Grad, država, poštanski broj"]
[null,null,"Telefon"]
["Unesite informacije u tabelu „Detalji prodaje“ koja počinje od ćelije sa desne strane. Sledeće uputstvo se nalazi u ćeliji A17.","PRODAVAC","POSAO","USLOVI PLAĆANJA","KRAJNJI ROK"]
[{"$nulls":3},"Platiti po prijemu"]
[]
["Unesite informacije u tabelu „Faktura“ koja počinje od ćelije sa desne strane. Međuvrednost i zbir vrednost izračunavaju se automatski. Sledeće uputstvo se nalazi u ćeliji A42.","KOLIČINA","OPIS","CENA PO JEDINICI","ZBIR REDA"]
[{"$nulls":4},{"$f":"IF(SUM(B18)>0,SUM(B18*'Faktura za uslugu'!$D18),\"\")","v":""}]
[{"$nulls":4},{"$f":"IF(SUM(B19)>0,SUM(B19*'Faktura za uslugu'!$D19),\"\")","v":""}]
[{"$nulls":4},{"$f":"IF(SUM(B20)>0,SUM(B20*'Faktura za uslugu'!$D20),\"\")","v":""}]
[{"$nulls":4},{"$f":"IF(SUM(B21)>0,SUM(B21*'Faktura za uslugu'!$D21),\"\")","v":""}]
[{"$nulls":4},{"$f":"IF(SUM(B22)>0,SUM(B22*'Faktura za uslugu'!$D22),\"\")","v":""}]
[{"$nulls":4},{"$f":"IF(SUM(B23)>0,SUM(B23*'Faktura za uslugu'!$D23),\"\")","v":""}]
[{"$nulls":4},{"$f":"IF(SUM(B24)>0,SUM(B24*'Faktura za uslugu'!$D24),\"\")","v":""}]
[{"$nulls":4},{"$f":"IF(SUM(B25)>0,SUM(B25*'Faktura za uslugu'!$D25),\"\")","v":""}]
[{"$nulls":4},{"$f":"IF(SUM(B26)>0,SUM(B26*'Faktura za uslugu'!$D26),\"\")","v":""}]
[{"$nulls":4},{"$f":"IF(SUM(B27)>0,SUM(B27*'Faktura za uslugu'!$D27),\"\")","v":""}]
[{"$nulls":4},{"$f":"IF(SUM(B28)>0,SUM(B28*'Faktura za uslugu'!$D28),\"\")","v":""}]
[{"$nulls":4},{"$f":"IF(SUM(B29)>0,SUM(B29*'Faktura za uslugu'!$D29),\"\")","v":""}]
[{"$nulls":4},{"$f":"IF(SUM(B30)>0,SUM(B30*'Faktura za uslugu'!$D30),\"\")","v":""}]
[{"$nulls":4},{"$f":"IF(SUM(B31)>0,SUM(B31*'Faktura za uslugu'!$D31),\"\")","v":""}]
[{"$nulls":4},{"$f":"IF(SUM(B32)>0,SUM(B32*'Faktura za uslugu'!$D32),\"\")","v":""}]
[{"$nulls":4},{"$f":"IF(SUM(B33)>0,SUM(B33*'Faktura za uslugu'!$D33),\"\")","v":""}]
[{"$nulls":4},{"$f":"IF(SUM(B34)>0,SUM(B34*'Faktura za uslugu'!$D34),\"\")","v":""}]
[{"$nulls":4},{"$f":"IF(SUM(B35)>0,SUM(B35*'Faktura za uslugu'!$D35),\"\")","v":""}]
[{"$nulls":4},{"$f":"IF(SUM(B36)>0,SUM(B36*'Faktura za uslugu'!$D36),\"\")","v":""}]
[{"$nulls":4},{"$f":"IF(SUM(B37)>0,SUM(B37*'Faktura za uslugu'!$D37),\"\")","v":""}]
[{"$nulls":3},"MEĐUVREDNOST",{"$f":"IF(SUM(E18:E37)>0,SUM(E18:E37),\"\")","v":""}]
[{"$nulls":3},"POREZ NA PROMET"]
[{"$nulls":3},"ZBIR",{"$f":"IF(SUM(E38)>0,SUM((E38*E39)+E38),\"\")","v":""}]
[]
["Ime preduzeća se automatski ažurira u ćeliji D42.","Neka svi čekovi glase na",null,{"$f":"B3","v":"Ime vašeg preduzeća"}]
["Poruka zahvalnosti nalazi se u ćeliji sa desne strane.","ZAHVALJUJEMO SE NA POSLOVANJU!"]